[Event "WEM-IMT 2018"]
[Site "Illertissen"]
[Date "2018.09.02"]
[Round "9"]
[White "Fischer, Sebastian"]
[Black "Kabisch, Thilo"]
[Result "0-1"]
[ECO "A47"]
[WhiteElo "2292"]
[BlackElo "2314"]
[Annotator "NA"]
[PlyCount "210"]
[EventDate "2018.08.25"]
[EventType "tourn"]
[EventCountry "GER"]
[SourceTitle "playchess.com"]
[Source "ChessBase"]
[SourceQuality "1"]
[TimeControl "40/6000+30:3000+30"]

1. d4 {[%emt 0:00:00]} Nf6 {[%emt 0:08:03]} 2. Nf3 {[%emt 0:00:00]} b6 {[%emt 0:00:12]} 3. Bf4 {[%emt 0:01:46]} Bb7 {[%emt 0:01:10]} 4. h3 {[%emt 0:00:43]} e6 {[%emt 0:00:45]} 5. e3 {[%emt 0:01:46]} Be7 {[%emt 0:05:02]} 6. Nbd2 {[%emt 0:04:41]} O-O {[%emt 0:00:55]} 7. Bd3 {[%emt 0:00:50]} c5 {[%emt 0:00:38]} 8. c3 {[%emt 0:00:12] LiveBook: 336 Games} d6 {[%emt 0:05:33]} 9. O-O {[%emt 0:04:58]} a6 {[%emt 0:01:22]} 10. a4 {[%emt 0:07:08] A47: 1 d4 Nf6 2 Nf3 b6: Torre, London and Colle Systems} (10. Qe2 cxd4 11. cxd4 Nc6 12. Rad1 Re8 13. Ne4 g6 14. Rfe1 b5 15. a4 bxa4 16. Nxf6+ Bxf6 17. Qc2 Ne7 18. Qxa4 Bxf3 19. gxf3 {0-1 (35) Bagheri,A (2520)-Milov,V (2652) Bastia 2005}) 10... Nc6 {[%emt 0:05:14]} 11. Qe2 {[%emt 0:03:15]} Re8 {[%emt 0:00:58]} 12. Rad1 $146 {[%emt 0:09:03]} ({Predecessor:} 12. Rfd1 Bf8 13. Bg5 cxd4 14. exd4 Ne7 15. h4 Ned5 16. c4 Nb4 17. Bb1 h6 18. Bxf6 Qxf6 {0-1 (55) Jacobsen,M (2090)-Barlag,C (2203) Werther 2014}) 12... Qc7 {[%emt 0:10:43]} 13. Bh2 {[%emt 0:07:52]} e5 {[%emt 0:07:59]} 14. dxc5 {[%emt 0:09:01]} bxc5 {[%emt 0:03:18]} 15. e4 {[%emt 0:00:35]} Nd8 {[%emt 0:02:23]} 16. b4 {[%emt 0:05:08]} Ne6 {[%emt 0:02:50]} 17. Bc4 {[%emt 0:08:20]} Nd7 {[%emt 0:05:34]} 18. Rc1 {[%emt 0:08:30]} a5 {[%emt 0:08:49]} 19. b5 {[%emt 0:02:28]} Nb6 {[%emt 0:00:15]} ({Black should play} 19... Nf4 $14 20. Qe3 Ne6) 20. Bb3 {[%emt 0:00:11]} (20. Bxe6 $16 fxe6 21. Nc4) 20... c4 {[%emt 0:02:59]} 21. Nxc4 {[%emt 0:02:39]} Nxc4 {[%emt 0:00:34]} 22. Bxc4 {[%emt 0:01:52]} Nc5 {[%emt 0:01:19]} 23. Qa2 {[%emt 0:02:48]} Rf8 {[%emt 0:02:26]} 24. Bd5 {[%emt 0:08:10]} Nxe4 {[%emt 0:00:38]} 25. Bxb7 {[%emt 0:01:37]} Qxb7 {[%emt 0:00:18]} 26. c4 {[%emt 0:00:46]} Rac8 {[%emt 0:01:22] [#]} 27. Nd2 $1 {[%emt 0:01:40]} Bg5 {[%emt 0:14:21]} 28. Nxe4 {[%emt 0:00:04]} Qxe4 {[%emt 0:00:05]} 29. Rfe1 {[%emt 0:00:35]} Qd4 {[%emt 0:01:32]} 30. Red1 {[%emt 0:02:42]} Qc5 {[%emt 0:02:31] [#]} 31. Rc3 {[%emt 0:00:52]} (31. Rc2 $1 $16) 31... h6 {[%emt 0:01:38]} ({Günstiger ist} 31... Rfd8 $14) 32. Kh1 {[%emt 0:02:44]} Rc7 {[%emt 0:01:39]} (32... Rfe8 $142 33. Bg1 Qc7) 33. Bg1 {[%emt 0:02:14]} Qb4 {[%emt 0:00:10]} 34. Rb3 $2 {[%emt 0:01:56]} ({White has to play} 34. Rc2 $18) 34... Qxc4 {[%emt 0:00:34]} 35. b6 {[%emt 0:00:37]} Rb7 {[%emt 0:05:54]} 36. Qb1 {[%emt 0:02:13]} Be7 {[%emt 0:01:54]} 37. Rc1 {[%emt 0:01:30]} Qxa4 {[%emt 0:01:21]} 38. Rc7 $2 {[%emt 0:02:20]} (38. Rb5 $15) 38... Rfb8 {[%emt 0:00:19]} 39. f3 {[%emt 0:00:44]} Bd8 {[%emt 0:02:17]} 40. Rxb7 {[%emt 0:04:20]} Rxb7 {[%emt 0:00:06]} 41. Rb5 $1 {[%emt 0:50:36]} g6 {[%emt 0:07:09] [#]} (41... Qc4 $1 $11 {remains equal.}) 42. Qd3 $1 {[%emt 0:00:00]} Bg5 $2 {[%emt 0:11:21]} (42... Qh4 $16 {is a better chance.}) 43. Rd5 {[%emt 0:00:00]} Qa1 {[%emt 0:13:55]} 44. Rxd6 {[%emt 0:00:00]} Qe1 {[%emt 0:08:14]} 45. Qb3 {[%emt 0:00:00]} ({Don't blunder} 45. Qd5 $2 {[#]} Be3 $1 $19 {[%mdl 512]}) 45... a4 {[%emt 0:07:07]} 46. Qxa4 {[%emt 0:00:00]} Kg7 {[%emt 0:05:45]} 47. Rd1 {[%emt 0:00:00]} Qe2 {[%emt 0:00:08]} 48. Rb1 {[%emt 0:00:00]} Bf4 {[%emt 0:02:12]} 49. Qc6 {[%emt 0:00:00]} Qa6 {[%emt 0:00:32]} 50. Qe4 {[%emt 0:00:00]} h5 {[%emt 0:00:24]} 51. Qc6 {[%emt 0:00:00]} h4 {[%emt 0:01:32]} 52. Bh2 {[%emt 0:00:00]} Qd3 {[%emt 0:00:30]} 53. Qb5 {[%emt 0:02:20]} (53. Rc1 $16 Qd7 54. Bxf4 Qxc6 55. Bxe5+ (55. Rxc6 exf4 56. Kg1 Rd7 $14) 55... Qf6 56. Bxf6+ Kxf6 57. Rb1) 53... Qxb5 {[%emt 0:00:24]} 54. Rxb5 {[%emt 0:00:04]} Bxh2 {[%emt 0:00:09]} 55. Kxh2 {[%emt 0:00:03]} Kf6 {[%emt 0:00:06]} 56. Kg1 {[%emt 0:02:36]} Ke6 {[%emt 0:00:42]} 57. Kf2 {[%emt 0:00:52]} Kd6 {[%emt 0:00:36]} 58. f4 {[%emt 0:01:46]} exf4 {[%emt 0:00:21]} 59. Kf3 {[%emt 0:00:26]} Kc6 {[%emt 0:00:26]} 60. Rb4 {[%emt 0:01:17]} g5 {[%emt 0:00:27]} 61. Kg4 {[%emt 0:00:48]} f6 {[%emt 0:00:06]} 62. Rc4+ {[%emt 0:00:26]} Kd5 {[%emt 0:00:18]} 63. Rb4 {[%emt 0:00:02]} Kc5 {[%emt 0:00:05]} 64. Rb2 {[%emt 0:00:49]} Rxb6 {[%emt 0:00:05]} 65. Re2 {[%emt 0:00:19]} Kd4 {[%emt 0:00:43]} 66. Kf5 {[%emt 0:00:03]} Kd3 {[%emt 0:00:06]} 67. Ra2 {[%emt 0:00:59]} Ke3 {[%emt 0:00:34]} 68. Rc2 {[%emt 0:00:28]} Rd6 {[%emt 0:00:42]} 69. Ra2 {[%emt 0:00:27]} Rd2 {[%emt 0:01:06]} 70. Ra3+ {[%emt 0:00:19]} Rd3 {[%emt 0:00:12]} 71. Ra2 {[%emt 0:00:08]} Rd2 {[%emt 0:00:51]} 72. Ra3+ {[%emt 0:00:04]} Kf2 {[%emt 0:00:07]} 73. Kxf6 {[%emt 0:00:09]} Kxg2 {[%emt 0:00:12]} 74. Kxg5 {[%emt 0:00:13]} f3 {[%emt 0:00:25]} 75. Kxh4 {[%emt 0:00:11]} Rd4+ {[%emt 0:00:44]} 76. Kg5 {[%emt 0:00:06]} f2 {[%emt 0:00:04]} 77. Ra2 {[%emt 0:00:16]} Ra4 {[%emt 0:02:33]} 78. Rxa4 {[%emt 0:02:44]} f1=Q {[%emt 0:00:11]} 79. Rg4+ {[%emt 0:00:25]} Kh2 {[%emt 0:00:08]} 80. h4 {[%emt 0:00:19]} Qf7 {[%emt 0:00:27]} 81. h5 {[%emt 0:00:21]} Qg7+ {[%emt 0:00:14]} 82. Kf5 {[%emt 0:01:17]} Qh7+ {[%emt 0:00:24]} 83. Kg5 {[%emt 0:00:10]} Qg7+ {[%emt 0:00:57]} 84. Kf5 {[%emt 0:00:10]} Qh6 {[%emt 0:00:05]} 85. Rh4+ {[%emt 0:01:35]} Kg3 {[%emt 0:00:08]} 86. Rg4+ {[%emt 0:00:14]} Kh3 {[%emt 0:00:22]} 87. Re4 {[%emt 0:01:05]} Qxh5+ {[%emt 0:00:13]} 88. Ke6 {[%emt 0:00:03]} Kg3 {[%emt 0:00:23]} 89. Re5 {[%emt 0:00:13]} Qh7 {[%emt 0:00:12]} 90. Kd5 {[%emt 0:00:08]} Kf4 {[%emt 0:00:06]} 91. Re6 {[%emt 0:00:29]} Qd7+ {[%emt 0:00:41]} 92. Rd6 {[%emt 0:00:04]} Qb5+ {[%emt 0:00:07]} 93. Ke6 {[%emt 0:00:09]} Qf5+ {[%emt 0:00:10]} 94. Ke7 {[%emt 0:00:03]} Ke5 {[%emt 0:00:24]} 95. Rc6 {[%emt 0:00:50]} Qh7+ {[%emt 0:00:12]} 96. Kd8 {[%emt 0:00:12]} Kd5 $19 {[%emt 0:00:18]} (96... Qh4+ $142 97. Kd7 Qa4 98. Kc7 Qa7+ 99. Kd8 Qb8+ 100. Kd7 Qb7+ 101. Rc7 Qd5+ 102. Kc8 Ke6 103. Rb7 Qc4+ 104. Rc7 Qa4 105. Rb7 Kd6 106. Kb8 Qd4 107. Rb1 Kc6 108. Rc1+ Kb6 109. Rb1+ Ka6 110. Kc8 Qc4+ 111. Kd7 Qd3+ 112. Ke6 Qxb1 113. Kf6 Qb5 114. Kg6 Kb6 115. Kh6 Qf5 116. Kg7 Qg5+ 117. Kh7 Kc6 118. Kh8 Kd6 119. Kh7 Ke7 120. Kh8 Kf8 121. Kh7 Qh5#) 97. Rc7 {[%emt 0:00:28]} Qg8+ {[%emt 0:00:44]} 98. Kd7 {[%emt 0:00:04]} Qb8 {[%emt 0:02:18]} 99. Rc1 {[%emt 0:01:48]} Qd6+ {[%emt 0:01:25]} 100. Kc8 {[%emt 0:00:31]} Qf8+ {[%emt 0:00:53]} 101. Kb7 {[%emt 0:00:11]} Qb4+ {[%emt 0:00:19]} 102. Kc8 {[%emt 0:00:16]} Qg4+ {[%emt 0:00:05]} 103. Kb7 {[%emt 0:00:10]} Qg7+ {[%emt 0:00:23]} 104. Kc8 {[%emt 0:00:18]} Qh8+ {[%emt 0:00:19]} 105. Kb7 {[%emt 0:00:17]} Qb2+ {[%emt 0:00:05]} 0-1